fUST/lending_fUST_20250729
["ID","MTS","AMOUNT","RATE_DAILY","PERIOD"]
[375824769,1753753842227,-460.0,0.00019452,2]
[375824771,1753753842237,-460.0,0.00019452,2]
[375824773,1753753842246,-476.65247475,0.00019452,2]
[375824775,1753753842257,-460.0,0.00019452,2]
[375824776,1753753842268,-460.0,0.00019452,2]
[375824778,1753753842278,-460.0,0.00019452,2]
[375824781,1753753842288,-460.85009559,0.00019452,2]
[375824784,1753753842299,-460.0,0.00019452,2]
[375824787,1753753842308,-460.0,0.00019452,2]
[375824790,1753753842317,-462.17291887,0.00019452,2]
[375824792,1753753842327,-460.0,0.00019452,2]
[375824794,1753753842338,-460.0,0.00019452,2]
[375824796,1753753842347,-460.0,0.00019452,2]
[375824798,1753753842356,-460.0,0.00019452,2]
[375824800,1753753842366,-460.0,0.00019452,2]
[375824802,1753753842376,-460.0,0.00019452,2]
[375824804,1753753842386,-465.84509291,0.00019452,2]
[375824806,1753753842396,-460.0,0.00019452,2]
[375824807,1753753842406,-460.0,0.00019452,2]
[375824809,1753753842417,-460.0,0.00019452,2]
[375824811,1753753842427,-462.37232196,0.00019452,2]
[375824813,1753753842436,-463.69904993,0.00019452,2]
[375824815,1753753842445,-609.61,0.00019452,2]
[375824817,1753753842455,-460.0,0.00019452,2]
[375824819,1753753842464,-460.0,0.00019452,2]
[375824821,1753753842473,-156.4138146,0.00019452,2]
[375824823,1753753842482,-460.0,0.00019452,2]
[375824825,1753753842492,-462.01478044,0.00019452,2]
[375824827,1753753842501,-460.0,0.00019452,2]
[375824829,1753753842510,-460.0,0.00019452,2]
[375824831,1753753842519,-473.57634143,0.00019452,2]
[375824833,1753753842529,-560.56113274,0.00019452,2]
[375824835,1753753842538,-460.0,0.00019452,2]
[375824837,1753753842548,-460.0,0.00019452,2]
[375824839,1753753842557,-460.0,0.00019452,2]
[375824841,1753753842566,-460.0,0.00019452,2]
[375824843,1753753842575,-229.19944944,0.00019452,2]
[375824845,1753753842585,-460.0,0.00019452,2]
[375824847,1753753842594,-536.69053589,0.00019452,2]
[375824848,1753753842603,-466.66481263,0.00019452,2]
[375824850,1753753842612,-460.0,0.00019452,2]
[375824852,1753753842622,-461.02484116,0.00019452,2]
[375824854,1753753842631,-461.839335,0.00019452,2]
[375824856,1753753842640,-5391.93,0.00019452,2]
[375824858,1753753842650,-460.0,0.00019452,2]
[375824860,1753753842660,-460.0,0.00019452,2]
[375824862,1753753842670,-460.0,0.00019452,2]
[375824864,1753753842680,-475.69093637,0.00019452,2]
[375824866,1753753842690,-460.76340989,0.00019452,2]
[375824868,1753753842700,-460.0,0.00019452,2]
[375824870,1753753842709,-461.76191603,0.00019452,2]
[375824872,1753753842719,-460.0,0.00019452,2]
[375824874,1753753842728,-460.0,0.00019452,2]
[375824876,1753753842738,-460.0,0.00019452,2]
[375824878,1753753842747,-461.02165214,0.00019452,2]
[375824880,1753753842757,-555.41649974,0.00019452,2]
[375824882,1753753842766,-461.01760903,0.00019452,2]
[375824884,1753753842775,-1256.18,0.00019452,2]
[375824886,1753753842785,-460.0,0.00019452,2]
[375824888,1753753842795,-460.0,0.00019452,2]
[375824890,1753753842804,-460.0,0.00019452,2]
[375824892,1753753842814,-460.0,0.00019452,2]
[375824893,1753753842823,-460.0,0.00019452,2]
[375824895,1753753842832,-460.0,0.00019452,2]
[375824897,1753753842841,-462.87747131,0.00019452,2]
[375824899,1753753842851,-460.0,0.00019452,2]
[375824901,1753753842860,-465.06259376,0.00019452,2]
[375824903,1753753842869,-460.0,0.00019452,2]
[375824905,1753753842879,-187.38709205,0.00019452,2]
[375824907,1753753842888,-460.0,0.00019452,2]
[375824909,1753753842898,-221.50816651,0.00019452,2]
[375824911,1753753842907,-460.0,0.00019452,2]
[375824913,1753753842917,-460.0,0.00019452,2]
[375824915,1753753842930,-465.81467822,0.00019452,2]
[375824917,1753753842939,-460.0,0.00019452,2]
[375824919,1753753842948,-460.78767355,0.00019452,2]
[375824921,1753753842958,-460.0,0.00019452,2]
[375824923,1753753842967,-460.0,0.00019452,2]
[375824925,1753753842976,-460.0,0.00019452,2]
[375824927,1753753842985,-460.0,0.00019452,2]
[375824929,1753753842994,-460.0,0.00019452,2]
[375824931,1753753843003,-462.29169089,0.00019452,2]
[375824933,1753753843014,-461.52218759,0.00019452,2]
[375824935,1753753843024,-460.0,0.00019452,2]
[375824937,1753753843033,-460.0,0.00019452,2]
[375824939,1753753843043,-464.15102245,0.00019452,2]
[375824940,1753753843052,-460.0,0.00019452,2]
[375824942,1753753843061,-460.0,0.00019452,2]
[375824944,1753753843071,-460.0,0.00019452,2]
[375824946,1753753843080,-465.94754947,0.00019452,2]
[375824948,1753753843090,-460.0,0.00019452,2]
[375824950,1753753843100,-460.0,0.00019452,2]
[375824952,1753753843110,-403.5255005,0.00019452,2]
[375824954,1753753843120,-460.0,0.00019452,2]
[375824956,1753753843130,-462.70375859,0.00019452,2]
[375824958,1753753843139,-465.60737299,0.00019452,2]
[375824960,1753753843149,-461.66283583,0.00019452,2]
[375824962,1753753843159,-462.78619521,0.00019452,2]
[375824964,1753753843168,-460.0,0.00019452,2]
[375824966,1753753843177,-2142.14,0.00019452,2]
[375824968,1753753843187,-460.0,0.00019452,2]
[375824970,1753753843196,-460.0,0.00019452,2]
[375824972,1753753843206,-460.0,0.00019452,2]
[375824974,1753753843215,-460.0,0.00019452,2]
[375824976,1753753843226,-460.0,0.00019452,2]
[375824978,1753753843236,-460.0,0.00019452,2]
[375824980,1753753843245,-460.78672651,0.00019452,2]
[375824981,1753753843256,-460.0,0.00019452,2]
[375824983,1753753843267,-573.16,0.00019452,2]
[375824985,1753753843277,-461.19896371,0.00019452,2]
[375824988,1753753843287,-461.97,0.00019452,2]
[375824989,1753753843298,-460.0,0.00019452,2]
[375824991,1753753843309,-460.0,0.00019452,2]
[375824993,1753753843319,-460.0,0.00019452,2]
[375824995,1753753843330,-460.0,0.00019452,2]
[375824997,1753753843343,-460.0,0.00019452,2]
[375824999,1753753843353,-460.0,0.00019452,2]
[375825001,1753753843364,-460.0,0.00019452,2]
[375825003,1753753843374,-460.0,0.00019452,2]
[375825005,1753753843385,-464.85762574,0.00019452,2]
[375825007,1753753843395,-460.0,0.00019452,2]
[375825009,1753753843405,-463.08613846,0.00019452,2]
[375825011,1753753843415,-460.0,0.00019452,2]
[375825013,1753753843424,-460.0,0.00019452,2]
[375825015,1753753843434,-460.0,0.00019452,2]
[375825017,1753753843443,-460.0,0.00019452,2]
[375825019,1753753843453,-460.0,0.00019452,2]
[375825021,1753753843462,-460.0,0.00019452,2]
[375825023,1753753843472,-460.0,0.00019452,2]
[375825025,1753753843481,-1126.31,0.00019452,2]
[375825027,1753753843492,-460.0,0.00019452,2]
[375825029,1753753843501,-463.49270176,0.00019452,2]
[375825031,1753753843511,-460.0,0.00019452,2]
[375825051,1753753843672,-460.0,0.00019452,2]
[375825053,1753753843705,-460.0,0.00019452,2]
[375825055,1753753843715,-460.0,0.00019452,2]
[375825057,1753753843725,-460.0,0.00019452,2]
[375825059,1753753843735,-641.3,0.00019452,2]
[375825061,1753753843745,-460.0,0.00019452,2]
[375825063,1753753843755,-460.0,0.00019452,2]
[375825065,1753753843765,-1466.07,0.00019452,2]
[375825067,1753753843774,-460.0,0.00019452,2]
[375825069,1753753843783,-460.0,0.00019452,2]
[375825071,1753753843794,-466.21732374,0.00019452,2]
[375825073,1753753843803,-467.14160796,0.00019452,2]
[375825075,1753753843813,-460.0,0.00019452,2]
[375825077,1753753843823,-461.64563402,0.00019452,2]
[375825079,1753753843832,-460.0,0.00019452,2]
[375825081,1753753843842,-460.0,0.00019452,2]
[375825083,1753753843852,-477.65570464,0.00019452,2]
[375825085,1753753843862,-460.0,0.00019452,2]
[375825087,1753753843872,-460.0,0.00019452,2]
[375825089,1753753843882,-462.37718136,0.00019452,2]
[375825091,1753753843892,-1416.76,0.00019452,2]
[375825093,1753753843902,-460.0,0.00019452,2]
[375825094,1753753843911,-1961.96,0.00019452,2]
[375825098,1753753843934,-460.0,0.00019452,2]
[375825100,1753753843945,-460.0,0.00019452,2]
[375825102,1753753843956,-460.0,0.00019452,2]
[375825104,1753753843966,-460.0,0.00019452,2]
[375825106,1753753843976,-460.0,0.00019452,2]
[375825108,1753753843989,-462.97268453,0.00019452,2]
[375825110,1753753843999,-460.0,0.00019452,2]
[375825112,1753753844012,-460.0,0.00019452,2]
[375825114,1753753844022,-460.0,0.00019452,2]
[375825116,1753753844033,-460.90065586,0.00019452,2]
[375825118,1753753844044,-463.18543613,0.00019452,2]
[375825120,1753753844054,-460.0,0.00019452,2]
[375825122,1753753844065,-460.0,0.00019452,2]
[375825124,1753753844075,-460.0,0.00019452,2]
[375825126,1753753844085,-460.0,0.00019452,2]
[375825128,1753753844096,-460.0,0.00019452,2]
[375825130,1753753844107,-460.0,0.00019452,2]
[375825132,1753753844117,-460.0,0.00019452,2]
[375825134,1753753844127,-460.0,0.00019452,2]
[375825136,1753753844136,-460.0,0.00019452,2]
[375825138,1753753844146,-460.0,0.00019452,2]
[375825140,1753753844156,-460.0,0.00019452,2]
[375825142,1753753844167,-460.0,0.00019452,2]
[375825144,1753753844176,-460.0,0.00019452,2]
[375825146,1753753844186,-460.0,0.00019452,2]
[375825148,1753753844196,-1570.48,0.00019452,2]
[375825151,1753753844206,-687.97,0.00019452,2]
[375825153,1753753844216,-460.0,0.00019452,2]
[375825155,1753753844226,-460.0,0.00019452,2]
[375825157,1753753844236,-1981.62,0.00019452,2]
[375825159,1753753844246,-460.0,0.00019452,2]
[375825161,1753753844257,-460.0,0.00019452,2]
[375825163,1753753844269,-460.0,0.00019452,2]
[375825165,1753753844280,-460.0,0.00019452,2]
[375825167,1753753844291,-227.11719788,0.00019452,2]
[375825169,1753753844303,-185.46045587,0.00019452,2]
[375825171,1753753844315,-460.0,0.00019452,2]
[375825173,1753753844324,-460.0,0.00019452,2]
[375825174,1753753844337,-460.0,0.00019452,2]
[375825177,1753753844349,-460.0,0.00019452,2]
[375825179,1753753844359,-4096.91,0.00019452,2]
[375825181,1753753844369,-460.0,0.00019452,2]
[375825183,1753753844379,-1320.75,0.00019452,2]
[375825184,1753753844389,-465.69685597,0.00019452,2]
[375825186,1753753844398,-460.0,0.00019452,2]
[375825189,1753753844409,-460.0,0.00019452,2]
[375825191,1753753844419,-1488.78,0.00019452,2]
[375825193,1753753844429,-465.80737133,0.00019452,2]
[375825195,1753753844439,-465.85782512,0.00019452,2]
[375825197,1753753844449,-460.0,0.00019452,2]
[375825198,1753753844459,-460.0,0.00019452,2]
[375825200,1753753844468,-1227.47,0.00019452,2]
[375825202,1753753844478,-460.0,0.00019452,2]
[375825204,1753753844488,-460.0,0.00019452,2]
[375825206,1753753844498,-460.0,0.00019452,2]
[375825208,1753753844507,-460.0,0.00019452,2]
[375825210,1753753844518,-460.0,0.00019452,2]
[375825212,1753753844528,-460.0,0.00019452,2]
[375825214,1753753844538,-504.73,0.00019452,2]
[375825216,1753753844551,-462.46611718,0.00019452,2]
[375825217,1753753844566,-462.29192321,0.00019452,2]
[375825218,1753753844576,-461.50802428,0.00019452,2]
[375825219,1753753844586,-460.0,0.00019452,2]
[375825220,1753753844596,-461.13467004,0.00019452,2]
[375825221,1753753844606,-460.0,0.00019452,2]
[375825222,1753753844616,-460.0,0.00019452,2]
[375825223,1753753844626,-255.27271483,0.00019452,2]
[375825224,1753753844635,-460.0,0.00019452,2]
[375825225,1753753844645,-460.0,0.00019452,2]
[375825226,1753753844655,-543.91,0.00019452,2]
[375825227,1753753844664,-427.61929856,0.00019452,2]
[375825228,1753753844674,-462.41393302,0.00019452,2]
[375825229,1753753844685,-460.0,0.00019452,2]
[375825230,1753753844695,-460.0,0.00019452,2]
[375825231,1753753844704,-460.0,0.00019452,2]
[375825232,1753753844714,-460.0,0.00019452,2]
[375825233,1753753844724,-461.41479268,0.00019452,2]
[375825234,1753753844734,-464.30290457,0.00019452,2]
[375825236,1753753844744,-460.0,0.00019452,2]
[375825238,1753753844754,-460.0,0.00019452,2]
[375825240,1753753844765,-468.34864337,0.00019452,2]
[375825242,1753753844774,-460.0,0.00019452,2]
[375825244,1753753844785,-460.0,0.00019452,2]
[375825246,1753753844798,-466.98,0.00019452,2]
[375825248,1753753844808,-407.59871483,0.00019452,2]
[375825250,1753753844818,-592.5,0.00019452,2]
[375825252,1753753844828,-461.98386504,0.00019452,2]
[375825254,1753753844838,-462.98464384,0.00019452,2]
[375825256,1753753844849,-460.0,0.00019452,2]
[375825258,1753753844861,-460.0,0.00019452,2]
[375825260,1753753844871,-460.0,0.00019452,2]
[375825262,1753753844882,-460.0,0.00019452,2]
[375825264,1753753844891,-687.98,0.00019452,2]
[375825266,1753753844901,-460.0,0.00019452,2]
[375825268,1753753844911,-460.0,0.00019452,2]
[375825270,1753753844923,-460.0,0.00019452,2]
[375825272,1753753844933,-484.98,0.00019452,2]
[375825274,1753753844943,-460.0,0.00019452,2]
[375825276,1753753844954,-461.47483771,0.00019452,2]
[375825278,1753753844964,-461.64,0.00019452,2]
[375825280,1753753844974,-200.0,0.0001956,15]
[375825282,1753753844985,-200.0,0.0001956,15]
[375825285,1753753844995,-200.0,0.0001956,15]
[375825286,1753753845006,-200.0,0.0001956,15]
[375825288,1753753845015,-464.48587296,0.00019726,2]
[375825290,1753753845026,-483.15861471,0.00019726,2]
[375825292,1753753845037,-472.3873183,0.00019726,2]
[375825294,1753753845051,-461.15393334,0.00019726,2]
[375825296,1753753845060,-460.0,0.00019726,2]
[375825298,1753753845070,-460.0,0.00019726,2]
[375825300,1753753845080,-460.0,0.00019726,2]
[375825302,1753753845090,-460.0,0.00019726,2]
[375825329,1753753845309,-460.0,0.00019726,2]
[375825331,1753753845322,-544.21595373,0.00019726,2]
[375825332,1753753845335,-460.0,0.00019726,2]
[375825334,1753753845347,-462.04681142,0.00019726,2]
[375825337,1753753845359,-154.68968948,0.00019726,2]
[375825338,1753753845368,-460.0,0.00019726,2]
[375825340,1753753845378,-460.0,0.00019726,2]
[375825343,1753753845390,-355.03680545,0.00019726,2]
[375825344,1753753845400,-460.0,0.00019726,2]
[375825346,1753753845410,-460.0,0.00019726,2]
[375825348,1753753845419,-460.0,0.00019726,2]
[375825350,1753753845431,-460.0,0.00019726,2]
[375825352,1753753845441,-460.0,0.00019726,2]
[375825354,1753753845451,-460.0,0.00019726,2]
[375825356,1753753845462,-460.0,0.00019726,2]
[375825358,1753753845473,-461.58316653,0.00019726,2]
[375825360,1753753845483,-461.51426461,0.00019726,2]
[375825362,1753753845493,-461.36874443,0.00019726,2]
[375825364,1753753845503,-460.0,0.00019726,2]
[375825366,1753753845513,-460.0,0.00019726,2]
[375825368,1753753845523,-460.0,0.00019726,2]
[375825370,1753753845532,-461.07810939,0.00019726,2]
[375825372,1753753845544,-460.0,0.00019726,2]
[375825374,1753753845553,-460.0,0.00019726,2]
[375825376,1753753845563,-460.0,0.00019726,2]
[375825377,1753753845574,-462.00863113,0.00019726,2]
[375825379,1753753845583,-462.15247881,0.00019726,2]
[375825381,1753753845594,-576.87457986,0.00019726,2]
[375825383,1753753845604,-460.0,0.00019726,2]
[375825385,1753753845614,-460.0,0.00019726,2]
[375825387,1753753845624,-460.0,0.00019726,2]
[375825389,1753753845634,-460.0,0.00019726,2]
[375825390,1753753845645,-460.0,0.00019726,2]
[375825392,1753753845655,-460.0,0.00019726,2]
[375825394,1753753845665,-465.04943688,0.00019726,2]
[375825396,1753753845675,-460.0,0.00019726,2]
[375825398,1753753845686,-460.0,0.00019726,2]
[375825400,1753753845696,-460.0,0.00019726,2]
[375825402,1753753845706,-465.12888517,0.00019726,2]
[375825404,1753753845716,-380.0,0.00019726,2]
[375825406,1753753845726,-460.0,0.00019726,2]
[375825408,1753753845736,-460.0,0.00019726,2]
[375825410,1753753845746,-460.0,0.00019726,2]
[375825412,1753753845755,-1337.37,0.00019726,2]
[375825413,1753753845766,-460.0,0.00019726,2]
[375825415,1753753845776,-463.66715179,0.00019726,2]
[375825417,1753753845786,-460.0,0.00019726,2]
[375825419,1753753845797,-460.0,0.00019726,2]
[375825421,1753753845807,-460.0,0.00019726,2]
[375825423,1753753845817,-464.33539216,0.00019726,2]
[375825425,1753753845827,-460.0,0.00019726,2]
[375825427,1753753845838,-464.26133397,0.00019726,2]
[375825429,1753753845848,-460.0,0.00019726,2]
[375825431,1753753845858,-460.0,0.00019726,2]
[375825433,1753753845868,-483.9768645,0.00019726,2]
[375825435,1753753845878,-461.75148002,0.00019726,2]
[375825437,1753753845888,-460.0,0.00019726,2]
[375825438,1753753845899,-460.0,0.00019726,2]
[375825440,1753753845910,-460.0,0.00019726,2]
[375825442,1753753845920,-460.0,0.00019726,2]
[375825444,1753753845930,-575.27060609,0.00019726,2]
[375825446,1753753845940,-460.0,0.00019726,2]
[375825448,1753753845950,-460.0,0.00019726,2]
[375825450,1753753845960,-460.0,0.00019726,2]
[375825452,1753753845969,-481.41084988,0.00019726,2]
[375825454,1753753845979,-460.0,0.00019726,2]
[375825456,1753753845991,-460.0,0.00019726,2]
[375825458,1753753846000,-460.0,0.00019726,2]
[375825460,1753753846010,-460.0,0.00019726,2]
[375825462,1753753846023,-633.03,0.00019726,2]
[375825464,1753753846032,-374.30024023,0.00019726,2]
[375825466,1753753846043,-460.0,0.00019726,2]
[375825468,1753753846052,-460.0,0.00019726,2]
[375825469,1753753846061,-460.0,0.00019726,2]
[375825471,1753753846071,-461.2900649,0.00019726,2]
[375825473,1753753846081,-460.0,0.00019726,2]
[375825475,1753753846094,-460.0,0.00019726,2]
[375825477,1753753846104,-460.0,0.00019726,2]
[375825479,1753753846115,-460.0,0.00019726,2]
[375825481,1753753846125,-462.23453785,0.00019726,2]
[375825483,1753753846135,-463.58304064,0.00019726,2]
[375825484,1753753846145,-461.65277964,0.00019726,2]
[375825486,1753753846154,-460.0,0.00019726,2]
[375825488,1753753846164,-460.0,0.00019726,2]
[375825490,1753753846173,-468.37801871,0.00019726,2]
[375825492,1753753846183,-465.06070054,0.00019726,2]
[375825494,1753753846193,-460.0,0.00019726,2]
[375825496,1753753846203,-471.56839883,0.00019726,2]
[375825498,1753753846212,-462.10381663,0.00019726,2]
[375825500,1753753846222,-470.13360577,0.00019726,2]
[375825501,1753753846231,-460.0,0.00019726,2]
[375825503,1753753846242,-462.8693843,0.00019726,2]
[375825505,1753753846252,-464.3775728,0.00019726,2]
[375825507,1753753846266,-460.0,0.00019726,2]
[375825509,1753753846275,-460.0,0.00019726,2]
[375825511,1753753846285,-460.0,0.00019726,2]
[375825513,1753753846296,-460.0,0.00019726,2]
[375825516,1753753846306,-460.0,0.00019726,2]
[375825518,1753753846328,-460.0,0.00019726,2]
[375825520,1753753846340,-460.0,0.00019726,2]
[375825522,1753753846351,-460.0,0.00019726,2]
[375825524,1753753846363,-194.11338936,0.00019726,2]
[375825526,1753753846372,-460.0,0.00019726,2]
[375825528,1753753846383,-465.84181274,0.00019726,2]
[375825530,1753753846393,-460.76455898,0.00019726,2]
[375825532,1753753846405,-461.80570999,0.00019726,2]
[375825534,1753753846416,-460.0,0.00019726,2]
[375825536,1753753846426,-460.0,0.00019726,2]
[375825537,1753753846436,-460.0,0.00019726,2]
[375825539,1753753846446,-461.84027404,0.00019726,2]
[375825541,1753753846456,-460.0,0.00019726,2]
[375825543,1753753846466,-497.75731223,0.00019726,2]
[375825545,1753753846476,-650.21,0.00019726,2]
[375825547,1753753846486,-460.0,0.00019726,2]
[375825549,1753753846495,-460.0,0.00019726,2]
[375825551,1753753846505,-460.0,0.00019726,2]
[375825553,1753753846516,-460.0,0.00019726,2]
[375825555,1753753846525,-461.89734099,0.00019726,2]
[375825557,1753753846535,-460.0,0.00019726,2]
[375825558,1753753846544,-460.0,0.00019726,2]
[375825560,1753753846554,-303.84339252,0.00019726,2]
[375825562,1753753846565,-458.58045296,0.00019726,2]
[375825564,1753753846575,-460.0,0.00019726,2]
[375825566,1753753846585,-462.33780266,0.00019726,2]
[375825568,1753753846594,-460.0,0.00019726,2]
[375825570,1753753846604,-468.09594612,0.00019726,2]
[375825572,1753753846614,-463.71018066,0.00019726,2]
[375825574,1753753846623,-460.0,0.00019726,2]
[375825576,1753753846633,-460.0,0.00019726,2]
[375825578,1753753846643,-461.46118296,0.00019726,2]
[375825580,1753753846653,-460.0,0.00019726,2]
[375825582,1753753846664,-460.0,0.00019726,2]
[375825584,1753753846675,-460.0,0.00019726,2]
[375825586,1753753846686,-462.16405029,0.00019726,2]
[375825588,1753753846698,-460.0,0.00019726,2]
[375825590,1753753846709,-463.2378579,0.00019726,2]
[375825592,1753753846720,-460.0,0.00019726,2]
[375825594,1753753846731,-463.41459761,0.00019726,2]
[375825596,1753753846742,-460.0,0.00019726,2]
[375825598,1753753846753,-460.0,0.00019726,2]
[375825600,1753753846763,-205.13587426,0.00019726,2]
[375825602,1753753846774,-460.0,0.00019726,2]
[375825603,1753753846785,-460.0,0.00019726,2]
[375825605,1753753846801,-609.61,0.00019726,2]
[375825608,1753753846814,-460.0,0.00019726,2]
[375825609,1753753846824,-460.0,0.00019726,2]
[375825611,1753753846835,-460.0,0.00019726,2]
[375825613,1753753846846,-460.0,0.00019726,2]
[375825615,1753753846857,-262.46234566,0.00019726,2]
[375825617,1753753846868,-460.0,0.00019726,2]
[375825619,1753753846879,-460.0,0.00019726,2]
[375825621,1753753846889,-465.69186152,0.00019726,2]
[375825623,1753753846900,-461.96020444,0.00019726,2]
[375825625,1753753846911,-460.0,0.00019726,2]
[375825627,1753753846922,-460.0,0.00019726,2]
[375825629,1753753846932,-461.94376967,0.00019726,2]
[375825631,1753753846942,-5391.93,0.00019726,2]
[375825634,1753753846957,-460.0,0.00019726,2]
[375825636,1753753846968,-460.0,0.00019726,2]
[375825638,1753753846979,-460.0,0.00019726,2]
[375825640,1753753846989,-460.0,0.00019726,2]
[375825642,1753753847000,-384.68769099,0.00019726,2]
[375825644,1753753847011,-464.44006237,0.00019726,2]
[375825646,1753753847024,-1256.18,0.00019726,2]
[375825648,1753753847039,-460.0,0.00019726,2]
[375825650,1753753847063,-461.85515046,0.00019726,2]
[375825659,1753753847282,-460.0,0.00019726,2]
[375825660,1753753847294,-460.0,0.00019726,2]
[375825661,1753753847308,-460.0,0.00019726,2]
[375825662,1753753847319,-460.0,0.00019726,2]
[375825663,1753753847331,-460.0,0.00019726,2]
[375825664,1753753847344,-460.0,0.00019726,2]
[375825665,1753753847356,-460.0,0.00019726,2]
[375825666,1753753847367,-460.0,0.00019726,2]
[375825667,1753753847377,-460.0,0.00019726,2]
[375825668,1753753847387,-460.0,0.00019726,2]
[375825669,1753753847398,-460.0,0.00019726,2]
[375825670,1753753847408,-467.60471983,0.00019726,2]
[375825671,1753753847419,-460.0,0.00019726,2]
[375825672,1753753847429,-217.89499838,0.00019726,2]
[375825673,1753753847439,-460.0,0.00019726,2]
[375825674,1753753847450,-460.0,0.00019726,2]
[375825675,1753753847459,-460.0,0.00019726,2]
[375825676,1753753847470,-471.45414346,0.00019726,2]
[375825677,1753753847480,-462.4329519,0.00019726,2]
[375825678,1753753847491,-460.0,0.00019726,2]
[375825679,1753753847500,-461.73836968,0.00019726,2]
[375825680,1753753847510,-460.0,0.00019726,2]
[375825681,1753753847520,-460.0,0.00019726,2]
[375825682,1753753847530,-2142.14,0.00019726,2]
[375825683,1753753847540,-460.0,0.00019726,2]
[375825684,1753753847557,-460.0,0.00019726,2]
[375825685,1753753847567,-464.17104532,0.00019726,2]
[375825686,1753753847577,-460.0,0.00019726,2]
[375825687,1753753847587,-462.60650812,0.00019726,2]
[375825688,1753753847597,-460.0,0.00019726,2]
[375825689,1753753847608,-460.0,0.00019726,2]
[375825691,1753753847618,-573.16,0.00019726,2]
[375825693,1753753847628,-461.97,0.00019726,2]
[375825694,1753753847638,-460.0,0.00019726,2]
[375825697,1753753847650,-460.0,0.00019726,2]
[375825699,1753753847660,-460.0,0.00019726,2]
[375825701,1753753847671,-460.0,0.00019726,2]
[375825703,1753753847681,-461.34396876,0.00019726,2]
[375825704,1753753847691,-460.0,0.00019726,2]
[375825707,1753753847703,-460.0,0.00019726,2]
[375825709,1753753847714,-460.0,0.00019726,2]
[375825711,1753753847724,-460.0,0.00019726,2]
[375825713,1753753847734,-460.0,0.00019726,2]
[375825714,1753753847744,-460.0,0.00019726,2]
[375825717,1753753847754,-460.0,0.00019726,2]
[375825718,1753753847764,-460.0,0.00019726,2]
[375825720,1753753847774,-463.18554757,0.00019726,2]
[375825723,1753753847784,-460.0,0.00019726,2]
[375825724,1753753847795,-1126.31,0.00019726,2]
[375825726,1753753847805,-460.0,0.00019726,2]
[375825728,1753753847816,-465.46082556,0.00019726,2]
[375825730,1753753847826,-342.85304722,0.00019726,2]
[375825733,1753753847836,-460.0,0.00019726,2]
[375825734,1753753847846,-560.62521777,0.00019726,2]
[375825736,1753753847856,-460.0,0.00019726,2]
[375825738,1753753847866,-641.3,0.00019726,2]
[375825740,1753753847876,-463.65562001,0.00019726,2]
[375825742,1753753847886,-460.0,0.00019726,2]
[375825743,1753753847896,-1466.07,0.00019726,2]
[375825745,1753753847906,-467.97694107,0.00019726,2]
[375825747,1753753847915,-460.0,0.00019726,2]
[375825749,1753753847925,-542.37920136,0.00019726,2]
[375825751,1753753847935,-460.0,0.00019726,2]
[375825753,1753753847945,-465.68387107,0.00019726,2]
[375825755,1753753847955,-460.0,0.00019726,2]
[375825757,1753753847964,-460.0,0.00019726,2]